bitfinex/quotes_SOLUSD_20220211
["timestamp","ask_amount","ask_price","bid_price","bid_amount"]
[1644546494148,36.01278684,104.57,104.52,36.27133664]
[1644546494352,36.01278684,104.57,104.52,3.03219997]
[1644546494650,40.79478684,104.57,104.5,36.3572701]
[1644546494850,42.01278684,104.57,104.5,36.3572701]
[1644546495750,56.37038684,104.57,104.49,19.1393]
[1644546495954,56.37038684,104.57,104.49,6.0]
[1644546496152,4.783,104.56,104.49,6.0]
[1644546496453,4.783,104.56,104.47,29.1975]
[1644546496651,4.82771468,104.56,104.47,6.0]
[1644546496852,4.82771468,104.56,104.46,45.7374584]
[1644546497070,0.04471468,104.55,104.46,45.7374584]
[1644546497269,4.784,104.54,104.46,68.10459507]
[1644546497470,34.58620548,104.53,104.46,68.10459507]
[1644546499170,34.58620548,104.53,104.46,22.36713667]
[1644546500173,34.58620548,104.53,104.46,71.14767354]
[1644546501775,40.58620548,104.53,104.46,71.14767354]
[1644546503972,40.58620548,104.53,104.46,65.14767354]
[1644546505077,40.58620548,104.53,104.46,16.36713667]
[1644546506980,40.58620548,104.53,104.45,14.3626]
[1644546507178,4.785,104.52,104.44,4.783]
[1644546507379,4.82971468,104.52,104.42,1.75611137]
[1644546507577,4.82971468,104.52,104.39,51.8075]
[1644546507578,42.46687385,104.52,104.39,51.8075]
[1644546507781,31.07130412,104.51,104.39,47.0225]
[1644546507978,4.785,104.5,104.39,47.0225]
[1644546508179,28.619,104.5,104.39,47.0225]
[1644546508377,28.619,104.5,104.39,48.77861137]
[1644546508779,42.9862,104.5,104.39,63.39831137]
[1644546508979,40.00569816,104.49,104.4,38.58644775]
[1644546509179,4.787,104.48,104.4,38.58644775]
[1644546509379,40.00569816,104.49,104.41,1.75611137]
[1644546509778,40.00569816,104.49,104.41,8.00611137]
[1644546510180,40.00569816,104.49,104.42,1.75611137]
[1644546510379,40.00569816,104.49,104.42,8.00611137]
[1644546510780,40.00569816,104.49,104.43,1.75611137]
[1644546511181,40.00569816,104.49,104.43,2.00611137]
[1644546511980,40.00569816,104.49,104.43,0.25]
[1644546512386,40.00569816,104.49,104.41,46.23281137]
[1644546515687,23.834,104.5,104.41,46.23281137]
[1644546515886,6.0,104.5,104.41,152.94281137]
[1644546516088,0.04471468,104.52,104.41,152.94281137]
[1644546516288,6.04471468,104.52,104.41,191.69623779]
[1644546516790,38.75276769,104.51,104.41,191.69623779]
[1644546517191,38.75276769,104.51,104.41,191.24623779]
[1644546519287,38.75276769,104.51,104.44,14.3618]
[1644546519491,38.75276769,104.51,104.45,17.50092815]
[1644546519889,38.75276769,104.51,104.45,17.75092815]
[1644546520792,38.75276769,104.51,104.45,32.11272815]
[1644546520991,38.75276769,104.51,104.45,38.11272815]
[1644546523294,38.75276769,104.51,104.45,32.11272815]
[1644546523795,38.75276769,104.51,104.45,38.11272815]
[1644546524192,38.75276769,104.51,104.45,14.6118]
[1644546524692,38.75276769,104.51,104.44,14.3641]
[1644546524894,38.75276769,104.51,104.44,20.3641]
[1644546524895,43.53776769,104.51,104.44,20.3641]
[1644546525092,43.53776769,104.51,104.44,6.0]
[1644546525492,43.53776769,104.51,104.41,142.90225893]
[1644546525693,38.75276769,104.51,104.43,14.3658]
[1644546525902,44.75276769,104.51,104.43,14.3658]
[1644546526095,38.75276769,104.51,104.43,20.3658]
[1644546526294,4.785,104.5,104.43,6.0]
[1644546526493,4.785,104.5,104.41,4.785]
[1644546526695,10.785,104.5,104.39,71.0578]
[1644546526894,51.8155,104.5,104.39,71.0578]
[1644546527094,57.8155,104.5,104.4,36.20849433]
[1644546527494,57.8155,104.5,104.4,36.45849433]
[1644546527795,14.369,104.49,104.41,14.3687]
[1644546527993,4.785,104.48,104.41,14.3687]
[1644546528195,39.89296945,104.47,104.41,14.6187]
[1644546530498,39.89296945,104.47,104.39,24.92401137]
[1644546530699,39.89296945,104.47,104.4,14.3699]
[1644546530902,39.89296945,104.47,104.4,14.6199]
[1644546531098,39.89296945,104.47,104.4,16.37601137]
[1644546531300,39.89296945,104.47,104.41,45.23704742]
[1644546531699,39.89296945,104.47,104.42,16.12211137]
[1644546531901,39.89296945,104.47,104.42,16.37211137]
[1644546532701,39.89296945,104.47,104.43,1.75611137]
[1644546533001,39.89296945,104.47,104.43,16.37201137]
[1644546533604,39.89296945,104.47,104.43,1.75611137]
[1644546533802,39.89296945,104.47,104.41,14.3689]
[1644546534003,39.89296945,104.47,104.4,0.25]
[1644546534611,39.89296945,104.47,104.4,36.85512987]
[1644546535105,39.89296945,104.47,104.4,0.25]
[1644546535304,39.89296945,104.47,104.39,25.17401137]
[1644546535704,39.89296945,104.47,104.4,14.3701]
[1644546535909,39.89296945,104.47,104.4,14.6201]
[1644546536105,39.89296945,104.47,104.4,16.37621137]
[1644546537406,39.89296945,104.47,104.4,22.37621137]
[1644546537707,39.89296945,104.47,104.4,22.12621137]
[1644546538006,39.89296945,104.47,104.4,16.12621137]
[1644546538627,39.89296945,104.47,104.4,22.12621137]
[1644546539327,39.89296945,104.47,104.4,22.37621137]
[1644546539527,39.89296945,104.47,104.41,4.787]
[1644546539727,39.89296945,104.47,104.42,14.3668]
[1644546540129,39.89296945,104.47,104.42,14.6168]
[1644546540330,39.89296945,104.47,104.42,14.3668]
[1644546540729,39.89296945,104.47,104.42,14.6168]
[1644546542632,67.44241468,104.5,104.42,14.6168]
[1644546542831,0.04471468,104.5,104.43,1.75611137]
[1644546543030,2.67315917,104.51,104.45,14.3635]
[1644546543031,0.04471468,104.51,104.45,14.3635]
[1644546543234,25.15807385,104.52,104.45,14.3635]
[1644546543430,22.9402,104.52,104.45,14.6135]
[1644546543733,57.85913267,104.52,104.45,24.15368365]
[1644546544532,62.64413267,104.52,104.45,24.15368365]
[1644546545936,62.64413267,104.52,104.45,25.90979502]
[1644546546439,27.7252,104.52,104.45,25.90979502]
[1644546546638,27.7252,104.52,104.45,31.90979502]
[1644546546839,22.9402,104.52,104.47,14.358]
[1644546547037,4.83076716,104.56,104.47,14.358]
[1644546547238,3.07857345,104.55,104.48,1.75611137]
[1644546547438,44.62174217,104.55,104.48,1.75611137]
[1644546547637,41.58893588,104.55,104.48,8.00611137]
[1644546548239,47.58893588,104.55,104.48,8.00611137]
[1644546548641,41.58893588,104.55,104.48,8.00611137]
[1644546548841,41.58893588,104.55,104.49,14.3584]
[1644546549241,41.58893588,104.55,104.49,20.6084]
[1644546549640,41.58893588,104.55,104.49,62.73803916]
[1644546550642,37.68926716,104.56,104.49,62.73803916]
[1644546550844,4.783,104.55,104.49,62.73803916]
[1644546551042,37.6435,104.56,104.49,62.73803916]
[1644546551248,43.68926716,104.56,104.49,62.73803916]
[1644546551443,43.6435,104.56,104.49,62.48803916]
[1644546551644,64.29947335,104.56,104.49,62.73803916]
[1644546552042,58.29947335,104.56,104.49,62.73803916]
[1644546552243,64.29947335,104.56,104.49,62.73803916]
[1644546552442,58.29947335,104.56,104.49,62.73803916]
[1644546553843,64.29947335,104.56,104.49,20.6084]
[1644546554044,58.29947335,104.56,104.49,20.6084]
[1644546554842,58.29947335,104.56,104.49,64.51320102]
[1644546556144,63.08247335,104.56,104.49,20.6084]
[1644546556343,77.44107335,104.56,104.49,14.6084]
[1644546556544,78.65807335,104.56,104.49,0.25]
[1644546556743,64.29947335,104.56,104.47,34.3411]
[1644546557146,64.29947335,104.56,104.48,37.25631817]
[1644546557343,63.08247335,104.56,104.48,43.50631817]
[1644546557750,63.08247335,104.56,104.49,14.3583]
[1644546557944,58.29947335,104.56,104.49,14.3583]
[1644546558146,58.29947335,104.56,104.49,14.6083]
[1644546558646,64.29947335,104.56,104.49,14.6083]
[1644546559048,69.08247335,104.56,104.49,14.6083]
[1644546559845,63.08247335,104.56,104.49,14.6083]
[1644546560047,77.44117335,104.56,104.49,14.6083]
[1644546561450,72.65817335,104.56,104.49,14.6083]
[1644546561848,58.29947335,104.56,104.49,14.6083]
[1644546563348,64.29947335,104.56,104.49,14.6083]
[1644546564151,64.29947335,104.56,104.49,14.3583]
[1644546564652,78.65787335,104.56,104.49,14.3583]
[1644546564852,78.65787335,104.56,104.48,20.3594]
[1644546565051,4.783,104.55,104.48,14.3594]
[1644546566455,19.1433,104.55,104.48,14.3594]
[1644546566653,14.3603,104.55,104.48,14.3594]
[1644546567054,14.3603,104.55,104.48,14.6094]
[1644546567857,14.3603,104.55,104.48,14.3594]
[1644546568255,77.44227335,104.56,104.48,16.36551137]
[1644546568555,72.65827335,104.56,104.48,16.36551137]
[1644546568755,64.29947335,104.56,104.48,16.36551137]
[1644546568956,64.29947335,104.56,104.48,22.36551137]
[1644546570057,58.29947335,104.56,104.48,22.36551137]
[1644546571759,72.65797335,104.56,104.48,22.36551137]
[1644546572182,77.44097335,104.56,104.48,22.11551137]
[1644546573182,77.44097335,104.56,104.48,16.11551137]
[1644546573382,77.44097335,104.56,104.48,22.11551137]
[1644546573584,77.44097335,104.56,104.48,22.36551137]
[1644546574284,72.65797335,104.56,104.48,27.14851137]
[1644546574485,72.65797335,104.56,104.48,21.14851137]
[1644546574786,72.65797335,104.56,104.48,27.14851137]
[1644546575389,72.65797335,104.56,104.48,21.14851137]
[1644546576287,72.65797335,104.56,104.48,27.14851137]
[1644546576492,58.29947335,104.56,104.48,27.14851137]
[1644546577487,58.29947335,104.56,104.48,25.3924]
[1644546577687,78.65757335,104.56,104.48,25.3924]
[1644546577894,4.783,104.55,104.48,25.3924]
[1644546579289,4.783,104.55,104.48,20.6094]
[1644546580592,64.29947335,104.56,104.48,20.6094]
[1644546581894,29.2846,104.56,104.48,20.6094]
[1644546582091,0.04576716,104.57,104.48,33.49551137]
[1644546582293,0.04576716,104.58,104.49,4.783]
[1644546582495,0.04576716,104.59,104.51,14.3509]
[1644546582693,0.04576716,104.58,104.51,30.2629]
[1644546582895,23.27356716,104.6,104.52,10.76278945]
[1644546583096,45.6994963,104.59,104.52,12.51890082]
[1644546583294,45.6994963,104.59,104.52,42.41720082]
[1644546584695,45.6994963,104.59,104.54,14.3512]
[1644546584895,45.6994963,104.59,104.54,14.6012]
[1644546585399,45.6994963,104.59,104.54,14.3512]
[1644546585598,45.6994963,104.59,104.52,6.0]
[1644546585800,4.782,104.58,104.49,14.3592]
[1644546586001,7.85134771,104.58,104.49,14.3592]
[1644546586200,7.0589887,104.58,104.49,14.3592]
[1644546586601,30.7975887,104.58,104.49,14.3592]
[1644546586800,14.3595,104.56,104.49,14.6092]
[1644546587002,40.00589898,104.55,104.49,14.6092]
[1644546591506,40.00589898,104.55,104.49,20.6092]
[1644546592106,0.04576716,104.57,104.49,20.6092]
[1644546592408,28.56636716,104.58,104.49,45.0337]
[1644546592607,23.78436716,104.58,104.49,45.0337]
[1644546592808,29.78436716,104.58,104.49,45.0337]
[1644546593110,43.01298423,104.57,104.49,45.0337]
[1644546596212,57.36938423,104.57,104.49,49.8167]
[1644546596412,57.36938423,104.57,104.49,43.8167]
[1644546596615,57.36938423,104.57,104.49,49.8167]
[1644546596916,57.36938423,104.57,104.49,43.8167]
[1644546597315,57.36938423,104.57,104.49,39.0337]
[1644546598219,62.15238423,104.57,104.49,39.0337]
[1644546598441,47.79598423,104.57,104.49,39.0337]
[1644546598844,47.79598423,104.57,104.49,46.78981151]
[1644546599139,47.79598423,104.57,104.49,45.0337]
[1644546599339,47.79598423,104.57,104.49,39.0337]
[1644546599540,63.36928423,104.57,104.49,45.0337]
[1644546600943,63.36928423,104.57,104.49,49.8167]
[1644546601142,63.36928423,104.57,104.49,43.8167]
[1644546601445,63.36928423,104.57,104.49,49.8167]
[1644546601842,63.36928423,104.57,104.49,43.8167]
[1644546602047,68.15228423,104.57,104.49,43.8167]
[1644546602250,25.1393,104.57,104.49,43.8167]
[1644546602444,4.783,104.57,104.5,1.75611151]
[1644546602644,23.78436716,104.58,104.52,14.354]
[1644546602845,23.7386,104.58,104.52,14.604]
[1644546603243,68.3801711,104.58,104.52,27.90588613]
[1644546605646,74.3801711,104.58,104.52,27.90588613]
[1644546607951,74.3801711,104.58,104.52,14.604]
[1644546608150,88.7350711,104.58,104.52,14.354]
[1644546608350,88.7350711,104.58,104.49,10.783]
[1644546608551,88.7350711,104.58,104.49,4.783]
[1644546608552,7.80883123,104.57,104.49,4.783]
[1644546608760,4.782,104.57,104.48,24.6582]
[1644546608952,7.01322154,104.57,104.45,67.16858952]
[1644546609252,0.04596723,104.56,104.45,73.16858952]
[1644546609456,0.2587383,104.51,104.46,47.8626]
[1644546609850,0.2587383,104.51,104.46,55.86871151]
[1644546610650,0.2587383,104.51,104.46,55.61871151]
[1644546611252,0.2587383,104.51,104.46,14.3615]
[1644546611451,0.2587383,104.51,104.45,29.3862]
[1644546611651,0.2587383,104.51,104.45,10.785]
[1644546611855,0.2587383,104.51,104.45,4.785]
[1644546612551,14.6237383,104.51,104.45,4.785]
[1644546612751,47.7430808,104.5,104.45,5.035]
[1644546612956,47.7430808,104.5,104.45,0.25]
[1644546613256,47.7430808,104.5,104.44,23.5109]
[1644546613852,62.1095808,104.5,104.44,0.25]
[1644546614252,47.7430808,104.5,104.44,1.75611151]
[1644546614652,47.7430808,104.5,104.44,2.00611151]
[1644546614854,0.2587383,104.47,104.44,0.25]
[1644546615056,0.2587383,104.47,104.45,6.06439994]
[1644546615255,0.2587383,104.47,104.45,6.31439994]
[1644546615654,0.2587383,104.47,104.45,6.06439994]
[1644546615954,0.2587383,104.47,104.45,6.31439994]
[1644546617856,0.2587383,104.47,104.46,6.06439994]
[1644546618057,0.2587383,104.47,104.43,24.1702]
[1644546619057,0.2587383,104.47,104.43,25.92631151]
[1644546619260,0.2587383,104.47,104.43,26.17631151]
[1644546619858,68.1098808,104.5,104.43,26.17631151]
[1644546620062,68.1098808,104.5,104.43,26.20031151]
[1644546620259,0.2587383,104.46,104.43,26.20031151]
[1644546620560,0.2587383,104.46,104.44,6.06439994]
[1644546620760,0.2587383,104.46,104.44,6.31439994]
[1644546622960,0.2587383,104.46,104.44,20.67879994]
[1644546623161,0.2587383,104.46,104.44,22.43491145]
[1644546623763,0.2587383,104.46,104.44,27.21991145]
[1644546624768,0.2587383,104.46,104.44,22.43491145]
[1644546625063,0.2587383,104.46,104.44,20.67879994]
[1644546625263,64.58755741,104.52,104.44,6.31439994]
[1644546625463,0.2587383,104.45,104.44,6.33839994]
[1644546625662,0.2587383,104.45,104.44,6.31439994]
[1644546627063,0.2587383,104.45,104.44,20.67929994]
[1644546627268,0.2587383,104.45,104.44,22.43570519]
[1644546627665,0.2587383,104.45,104.44,20.67929994]
[1644546628765,0.0087383,104.45,104.44,28.43570519]
[1644546628971,0.0087383,104.45,104.44,33.24670519]
[1644546629170,0.0087383,104.45,104.44,44.37670519]
[1644546629368,0.0087383,104.45,104.44,44.35270519]
[1644546629871,0.0087383,104.45,104.44,68.18220519]
[1644546630467,39.33638709,104.53,104.44,68.18220519]
[1644546630669,39.33638709,104.53,104.47,14.3605]
[1644546630872,0.04596723,104.54,104.48,7.26663763]
[1644546631068,15.70556791,104.55,104.48,7.26663763]
[1644546631270,1.34496791,104.55,104.48,7.51663763]
[1644546631868,40.6900926,104.55,104.48,7.51663763]
[1644546632470,40.6900926,104.55,104.48,21.87613763]
[1644546632869,55.0498926,104.55,104.48,21.87613763]
[1644546633071,55.0498926,104.55,104.48,14.6095]
[1644546633771,61.0498926,104.55,104.48,14.6095]
[1644546636572,1.34496791,104.54,104.48,14.6095]
[1644546636974,61.09585983,104.55,104.48,14.6095]
[1644546637273,61.0498926,104.55,104.48,14.6095]
[1644546643085,61.0498926,104.55,104.48,14.3595]
[1644546644686,61.0498926,104.55,104.48,14.6095]
[1644546646788,15.70476791,104.55,104.48,14.6095]
[1644546646989,1.34496791,104.55,104.48,14.6095]
[1644546647208,1.34496791,104.55,104.48,20.6095]
[1644546647408,1.34496791,104.56,104.48,20.6095]
[1644546648511,1.34496791,104.56,104.49,23.896]
[1644546648712,1.34496791,104.56,104.51,14.3555]
[1644546648912,1.34496791,104.57,104.52,10.97221389]
[1644546649310,1.34496791,104.57,104.52,11.22221389]
[1644546649913,1.34496791,104.57,104.52,25.57721389]
[1644546650113,1.34496791,104.58,104.52,25.57721389]
[1644546654218,1.34496791,104.58,104.52,25.32721389]
[1644546654419,1.34496791,104.58,104.52,25.57721389]
[1644546655021,1.34496791,104.58,104.52,25.32721389]
[1644546655220,1.34496791,104.58,104.52,25.57721389]
[1644546655421,1.34496791,104.58,104.52,25.32721389]
[1644546655621,1.34496791,104.58,104.52,25.57721389]
[1644546655822,1.34496791,104.58,104.52,25.32721389]
[1644546657023,1.34496791,104.58,104.52,25.57721389]
[1644546657223,1.34496791,104.58,104.52,14.605]
[1644546657623,1.34496791,104.57,104.52,14.605]
[1644546657823,1.34496791,104.57,104.52,14.355]
[1644546658023,1.34496791,104.57,104.52,14.605]
[1644546658224,1.39093514,104.58,104.52,55.05006034]
[1644546658426,1.34496791,104.58,104.52,55.05006034]
[1644546659224,1.34496791,104.58,104.52,14.605]
[1644546659423,1.34496791,104.58,104.52,14.355]
[1644546659624,21.70006791,104.58,104.49,4.782]
[1644546659825,1.34496791,104.56,104.49,0.25]
[1644546660227,47.17119106,104.55,104.49,47.97193086]
[1644546660627,47.17119106,104.55,104.49,62.33103086]
[1644546661027,47.17119106,104.55,104.49,14.6091]
[1644546661226,48.51615897,104.55,104.49,14.6091]
[1644546662026,48.51615897,104.55,104.49,52.19806647]
[1644546663127,1.34496791,104.55,104.49,52.19806647]
[1644546663326,0.04596723,104.55,104.49,53.95447172]
[1644546663526,0.04596723,104.55,104.49,71.08447172]
[1644546663727,0.04596723,104.56,104.49,71.08447172]
[1644546664330,43.03352189,104.56,104.49,71.08447172]
[1644546664628,0.04596723,104.56,104.49,71.08447172]
[1644546667730,0.04596723,104.56,104.5,4.783]
[1644546667928,48.41000878,104.57,104.5,4.783]
[1644546667929,1.34496791,104.57,104.51,14.3537]
[1644546668129,0.04596723,104.56,104.51,38.8489]
[1644546668429,1.34496791,104.57,104.51,45.0989]
[1644546669233,40.59517471,104.58,104.51,45.0989]
[1644546669930,1.39093514,104.58,104.51,45.0989]
[1644546670134,1.34496791,104.58,104.51,46.85530525]
[1644546671530,1.34496791,104.58,104.51,45.0989]
[1644546671738,1.34496791,104.58,104.51,46.85530525]
[1644546674737,1.34496791,104.58,104.51,51.63730525]
[1644546674940,1.34496791,104.59,104.52,11.13]
[1644546675138,1.34496791,104.59,104.54,14.3486]
[1644546675337,1.39093514,104.6,104.54,20.5986]
[1644546675538,1.39093514,104.6,104.55,1.75640525]
[1644546675738,1.34496791,104.6,104.55,37.43881468]
[1644546675944,7.34496791,104.6,104.55,37.43881468]
[1644546676144,7.34496791,104.6,104.55,31.43881468]
[1644546676543,7.34496791,104.6,104.56,14.3478]
[1644546676744,1.34496791,104.6,104.56,14.5978]
[1644546677546,1.34496791,104.6,104.56,16.35420525]
[1644546677746,1.34496791,104.61,104.56,16.35420525]
[1644546678747,1.39093514,104.62,104.56,16.35420525]
[1644546679346,1.39093514,104.62,104.56,22.35420525]
[1644546679552,1.39093514,104.62,104.56,27.48420525]
[1644546679749,1.34496791,104.63,104.56,38.26420525]
[1644546679950,1.34496791,104.64,104.57,22.5844]
[1644546680250,0.04596723,104.63,104.6,37.58896647]
[1644546680450,1.34496791,104.64,104.61,6.06439994]
[1644546680864,1.34496791,104.65,104.61,6.31439994]
[1644546681666,1.34496791,104.65,104.61,26.65659994]
[1644546682066,1.34496791,104.65,104.61,20.65659994]
[1644546682264,1.39093514,104.66,104.61,20.65659994]
[1644546682465,1.34496791,104.66,104.61,20.65659994]
[1644546682666,1.39093514,104.66,104.61,20.65659994]
[1644546684071,0.39093514,104.66,104.61,20.65659994]
[1644546684268,0.04596723,104.66,104.61,20.65659994]
[1644546684469,69.17229492,104.67,104.61,20.65659994]
[1644546684672,0.04596723,104.66,104.61,20.65659994]
[1644546684869,69.21826215,104.67,104.61,20.65659994]
[1644546685070,69.17229492,104.67,104.61,20.65659994]
[1644546685470,69.21826215,104.67,104.61,20.65659994]
[1644546686472,75.21826215,104.67,104.61,20.65659994]
[1644546686673,69.21826215,104.67,104.61,6.06439994]
[1644546687375,75.21826215,104.67,104.61,6.06439994]
[1644546687573,69.21826215,104.67,104.61,6.06439994]
[1644546688575,24.79146723,104.67,104.61,6.06439994]
[1644546688776,0.04596723,104.67,104.61,20.65579994]
[1644546688976,4.777,104.68,104.61,28.41220519]
[1644546689176,0.04596723,104.67,104.61,44.31920519]
[1644546689376,6.0,104.68,104.61,69.04940519]
[1644546689377,6.04596723,104.68,104.61,69.04940519]
[1644546689576,0.04596723,104.67,104.61,64.27240519]
[1644546689779,0.04596723,104.69,104.61,64.27240519]
[1644546689977,0.04596723,104.69,104.62,4.777]
[1644546690179,0.04596723,104.69,104.64,32.83560943]
[1644546690380,30.39426723,104.7,104.64,44.05860943]
[1644546690580,0.04596723,104.69,104.64,44.05860943]
[1644546690778,30.39426723,104.7,104.64,44.05860943]
[1644546690979,0.04596723,104.69,104.64,44.05860943]
[1644546691179,30.39426723,104.7,104.64,44.05860943]
[1644546692982,24.39426723,104.7,104.64,44.05860943]
[1644546693382,24.39426723,104.7,104.64,50.05860943]
[1644546693783,24.39426723,104.7,104.64,20.5872]
[1644546693984,24.39426723,104.7,104.64,6.0]
[1644546694182,24.39426723,104.7,104.62,4.777]
[1644546694382,4.82296723,104.69,104.62,10.777]
[1644546694582,4.82296723,104.69,104.62,4.777]
[1644546694783,4.82296723,104.69,104.62,43.69670057]
[1644546695584,4.82296723,104.69,104.62,43.94670057]
[1644546695784,0.04596723,104.69,104.62,53.50980057]
[1644546696787,0.04596723,104.69,104.62,59.50980057]
[1644546697086,0.04596723,104.69,104.62,61.26620582]
[1644546697588,0.04596723,104.69,104.62,59.50980057]
[1644546698387,0.04596723,104.69,104.62,61.26620582]
[1644546698588,0.04596723,104.69,104.62,55.26620582]
[1644546698786,0.04596723,104.69,104.62,61.26620582]
[1644546698988,0.04596723,104.69,104.62,66.04320582]
[1644546699187,0.04596723,104.69,104.62,60.04320582]
[1644546699387,0.04596723,104.69,104.62,66.04320582]
[1644546702498,0.04596723,104.69,104.62,77.17320582]
[1644546707625,0.04596723,104.7,104.63,24.1822]
[1644546707824,0.04596723,104.7,104.65,14.3355]
[1644546708021,24.17366723,104.71,104.66,17.16767533]
[1644546708224,24.1277,104.71,104.66,17.16767533]
[1644546708422,24.1277,104.71,104.66,23.16767533]
[1644546708823,24.1277,104.71,104.66,23.41767533]
[1644546709225,24.1277,104.71,104.66,23.16767533]
[1644546710425,24.1277,104.71,104.66,23.41767533]
[1644546710623,24.1277,104.71,104.66,23.16767533]
[1644546711725,24.1277,104.71,104.66,6.0]
[1644546711927,24.1277,104.71,104.65,20.3355]
[1644546712131,24.1277,104.71,104.65,20.5855]
[1644546712532,26.81375843,104.71,104.65,20.5855]
[1644546712828,24.1277,104.71,104.65,60.39154403]
[1644546713031,26.81375843,104.71,104.65,60.39154403]
[1644546714731,47.15165843,104.71,104.65,6.0]
[1644546714932,41.15165843,104.71,104.63,25.93864035]
[1644546715131,0.04596723,104.7,104.64,0.25]
[1644546715331,47.19762566,104.71,104.64,0.25]
[1644546715734,47.19762566,104.71,104.64,41.53046781]
[1644546716832,47.19762566,104.71,104.64,55.86826781]
[1644546717933,5.6994701,104.7,104.64,55.86826781]
[1644546719032,32.85972566,104.71,104.64,55.86826781]
[1644546719233,32.85972566,104.71,104.64,63.62470816]
[1644546719435,26.85972566,104.71,104.64,63.62470816]
[1644546719835,26.85972566,104.71,104.64,74.75470816]
[1644546720235,26.85972566,104.71,104.64,79.53070816]
[1644546721736,26.85972566,104.71,104.64,74.75470816]
[1644546722937,26.85972566,104.71,104.64,79.53070816]
[1644546723741,26.85972566,104.71,104.64,94.00540816]
[1644546724742,2.73202566,104.71,104.64,94.00540816]
[1644546724944,0.04596723,104.71,104.64,94.00540816]
[1644546726148,0.04596723,104.71,104.66,14.3342]
[1644546726344,25.75042566,104.72,104.66,14.5842]
[1644546726545,25.70445843,104.72,104.66,14.5842]
[1644546726746,25.70445843,104.72,104.66,16.34064035]
[1644546727650,23.0184,104.72,104.66,16.34064035]
[1644546727947,25.75042566,104.72,104.66,16.34064035]
[1644546728146,23.0184,104.72,104.66,16.34064035]
[1644546728345,25.75042566,104.72,104.66,16.34064035]
[1644546728546,25.70445843,104.72,104.66,16.34064035]
[1644546729950,23.0184,104.72,104.66,16.34064035]
[1644546730152,23.06436723,104.72,104.66,16.34064035]
[1644546730551,0.04596723,104.72,104.66,27.47064035]
[1644546730753,5.74639294,104.74,104.66,33.47064035]
[1644546730954,0.04596723,104.72,104.67,4.775]
[1644546731258,0.04596723,104.73,104.68,16.08614035]
[1644546731552,0.04596723,104.74,104.69,14.80690809]
[1644546731752,50.83572566,104.75,104.69,15.05690809]
[1644546731952,50.78975843,104.75,104.69,15.05690809]
[1644546732158,50.83572566,104.75,104.69,15.05690809]
[1644546732352,50.78975843,104.75,104.7,14.3297]
[1644546732854,50.78975843,104.75,104.69,15.05690809]
[1644546733053,50.83572566,104.75,104.69,15.05690809]
[1644546733251,50.83572566,104.75,104.69,14.80690809]
[1644546733877,65.16772566,104.75,104.69,29.13860809]
[1644546734276,2.68605843,104.74,104.69,29.13860809]
[1644546734476,5.70263177,104.74,104.69,29.13860809]
[1644546734877,2.68605843,104.74,104.69,29.38860809]
[1644546735078,65.16772566,104.75,104.69,29.38860809]
[1644546735278,65.16772566,104.75,104.69,29.13860809]
[1644546735478,65.12175843,104.75,104.69,29.13860809]
[1644546735882,65.12175843,104.75,104.69,29.38860809]
[1644546736079,56.78975843,104.75,104.69,29.38860809]
[1644546736279,50.83572566,104.75,104.69,29.38860809]
[1644546737780,50.83572566,104.75,104.69,29.13860809]
[1644546737982,65.16762566,104.75,104.69,29.13860809]
[1644546738182,65.12165843,104.75,104.69,29.13860809]
[1644546738581,65.12165843,104.75,104.69,14.80690809]
[1644546738784,52.46230266,104.74,104.69,14.80690809]
[1644546739087,49.45503933,104.74,104.67,24.1199]
[1644546739284,5.69311792,104.73,104.67,6.0]
[1644546739685,20.02881792,104.73,104.65,38.3343]
[1644546739885,24.30976723,104.72,104.66,35.28294738]
[1644546740084,24.2638,104.72,104.66,35.28294738]
[1644546740286,24.30976723,104.72,104.66,35.53294738]
[1644546741088,24.30976723,104.72,104.66,49.86854738]
[1644546742089,24.30976723,104.72,104.64,9.70628489]
[1644546742292,44.64586723,104.72,104.61,15.906]
[1644546742490,10.47007572,104.71,104.59,4.9840258]
[1644546742690,0.04596723,104.7,104.58,43.8684]
[1644546743189,41.61681715,104.7,104.59,48.65022716]
[1644546743397,0.04596723,104.69,104.59,48.65022716]
[1644546743589,23.25556723,104.69,104.6,22.5221]
[1644546743790,14.3434,104.68,104.6,37.1146]
[1644546743991,0.04596723,104.67,104.6,37.1146]
[1644546744189,23.53816723,104.67,104.61,4.777]
[1644546744388,23.4922,104.67,104.61,5.027]
[1644546744588,23.53816723,104.67,104.61,5.027]
[1644546745393,23.53816723,104.67,104.61,0.25]
[1644546745791,23.53816723,104.67,104.6,41.8916]
[1644546745995,23.53816723,104.67,104.6,37.1146]